bitfinex-derivatives/quotes_SOLF0:USTF0_20250321
["timestamp","ask_amount","ask_price","bid_price","bid_amount"]
[1742530738592,35.1185,128.29,128.28,0.05458244]
[1742530743990,7.85084042,128.3,128.28,12.05858087]
[1742530744590,7.7985,128.29,128.28,12.05858087]
[1742530744790,0.05254042,128.3,128.28,12.05858087]
[1742530745900,7.7985,128.29,128.28,12.05858087]
[1742530747296,7.7985,128.29,128.28,0.05458244]
[1742530753606,0.05254042,128.3,128.28,12.05858087]
[1742530754107,0.05254042,128.3,128.29,7.7985]
[1742530756703,0.05254042,128.3,128.29,19.80249843]
[1742530758113,315.8752,128.35,128.29,12.00399843]
[1742530758410,315.8752,128.35,128.31,12.00399843]
[1742530758612,35.1152,128.35,128.32,19.80019843]
[1742530759216,7.84765402,128.35,128.32,19.85801874]
[1742530759510,7.7955,128.34,128.32,19.85801874]
[1742530760917,7.84765402,128.35,128.32,19.85801874]
[1742530763319,35.16765402,128.35,128.32,19.85801874]
[1742530763920,7.84765402,128.35,128.32,19.85801874]
[1742530764121,35.16765402,128.35,128.32,19.85801874]
[1742530764323,35.16765402,128.35,128.33,7.796]
[1742530764823,27.37245402,128.35,128.33,7.796]
[1742530766121,0.05245402,128.35,128.34,7.7955]
[1742530770921,0.05245402,128.35,128.32,39.38181874]
[1742530771224,12.05645245,128.35,128.32,0.05782031]
[1742530771427,7.7955,128.34,128.32,0.05782031]
[1742530772122,7.7961,128.33,128.32,0.05782031]
[1742530772327,2.03585402,128.35,128.32,0.05782031]
[1742530772524,27.32,128.34,128.32,0.05782031]
[1742530772728,7.7961,128.33,128.32,0.05782031]
[1742530773227,35.1158,128.34,128.32,0.05782031]
[1742530774333,7.7961,128.33,128.32,0.05782031]
[1742530774717,0.05245402,128.35,128.32,0.05782031]
[1742530774918,0.05245402,128.35,128.33,12.00399843]
[1742530775329,0.05245402,128.35,128.33,19.79979843]
[1742530776027,7.84745402,128.35,128.33,12.00399843]
[1742530778332,7.7955,128.34,128.32,12.06181874]
[1742530778729,7.7961,128.33,128.32,12.06181874]
[1742530779734,0.05245402,128.35,128.32,19.85841874]
[1742530780033,0.05245402,128.35,128.32,39.38181874]
[1742530780730,7.84765402,128.35,128.33,7.7956]
[1742530781736,7.7957,128.34,128.32,47.17821874]
[1742530782235,0.05245402,128.35,128.33,7.796]
[1742530783433,7.84765402,128.35,128.33,7.796]
[1742530785234,7.84765402,128.35,128.32,39.38181874]
[1742530785235,7.84765402,128.35,128.32,47.17821874]
[1742530786438,7.84765402,128.35,128.33,7.796]
[1742530789140,7.84765402,128.35,128.32,47.17821874]
[1742530790036,7.84765402,128.35,128.33,7.7961]
[1742530794147,0.05245402,128.35,128.33,7.7961]
[1742530794342,0.05245402,128.35,128.34,19.79949843]
[1742530794546,2.0099,128.4,128.34,12.00399843]
[1742530794748,7.7921,128.4,128.38,7.793]
[1742530795144,37.1034,128.41,128.38,19.79699843]
[1742530795340,16.29589843,128.44,128.39,12.00399843]
[1742530795542,27.3,128.43,128.39,12.00399843]
[1742530795742,27.35531267,128.43,128.4,0.05139873]
[1742530796344,7.7909,128.42,128.4,0.05139873]
[1742530798750,7.7912,128.41,128.4,0.05139873]
[1742530801353,7.7909,128.42,128.4,12.05539716]
[1742530801742,7.7909,128.42,128.4,19.84719716]
[1742530802348,7.84561267,128.43,128.41,12.00399843]
[1742530802552,0.05531267,128.43,128.41,12.00399843]
[1742530803047,7.84561267,128.43,128.41,12.00399843]
[1742530803953,7.7906,128.42,128.41,12.00399843]
[1742530805253,7.84561267,128.43,128.41,12.00399843]
[1742530806147,0.05531267,128.43,128.41,12.00399843]
[1742530806352,0.05531267,128.43,128.42,12.00399843]
[1742530806953,7.84531267,128.43,128.42,12.00399843]
[1742530807656,7.7908,128.42,128.41,12.00399843]
[1742530807956,7.7908,128.42,128.4,12.05539716]
[1742530808652,7.7912,128.41,128.4,0.05139873]
[1742530810658,7.7909,128.42,128.4,0.05139873]
[1742530811258,7.7909,128.42,128.4,7.84319873]
[1742530811457,7.7909,128.42,128.4,19.84719716]
[1742530812362,7.7909,128.42,128.41,12.00399843]
[1742530813561,0.05531267,128.43,128.41,19.79519843]
[1742530813753,0.05531267,128.43,128.42,12.00399843]
[1742530814359,0.05531267,128.43,128.42,19.79459843]
[1742530814755,0.05531267,128.43,128.42,47.09459843]
[1742530814958,13.9046,128.48,128.45,7.7886]
[1742530815156,13.9046,128.48,128.45,19.79259843]
[1742530815558,41.2046,128.48,128.45,19.79259843]
[1742530816171,7.7876,128.47,128.45,12.05707289]
[1742530816770,33.47433893,128.48,128.45,19.84587289]
[1742530816971,6.17433893,128.48,128.45,12.05707289]
[1742530817167,27.33703893,128.48,128.45,12.05707289]
[1742530817365,0.05703893,128.48,128.45,12.05707289]
[1742530817668,7.84433893,128.48,128.45,19.84567289]
[1742530817866,0.05703893,128.48,128.45,12.05707289]
[1742530818070,0.05703893,128.48,128.46,19.79189843]
[1742530818868,0.05703893,128.48,128.46,12.00399843]
[1742530819670,7.84423893,128.48,128.46,12.00399843]
[1742530820562,0.05703893,128.48,128.45,0.05307446]
[1742530820768,27.28,128.47,128.45,0.05307446]
[1742530821571,7.7882,128.46,128.45,0.05307446]
[1742530823465,12.00399843,128.46,128.41,12.00399843]
[1742530823670,39.28399843,128.45,128.4,12.00399843]
[1742530823872,39.28399843,128.45,128.41,12.00399843]
[1742530824068,7.7908,128.42,128.41,12.00399843]
[1742530824471,27.28,128.45,128.41,12.00399843]
[1742530824674,7.8473313,128.43,128.42,12.00399843]
[1742530824870,0.0568313,128.43,128.41,12.00399843]
[1742530825070,27.3368313,128.43,128.4,12.05597014]
[1742530825276,7.7912,128.42,128.41,12.00399843]
[1742530829571,7.7912,128.41,128.4,12.05597014]
[1742530829870,27.3368313,128.43,128.4,12.05597014]
[1742530830371,7.7909,128.42,128.41,12.00399843]
[1742530830678,27.3368313,128.43,128.41,12.00399843]
[1742530830874,35.1271313,128.43,128.41,12.00399843]
[1742530831179,27.3368313,128.43,128.41,19.79519843]
[1742530831576,27.3368313,128.43,128.41,12.00399843]
[1742530832181,7.7906,128.42,128.41,12.00399843]
[1742530832381,7.7906,128.42,128.4,12.05597014]
[1742530834384,7.8472313,128.43,128.4,19.84767014]
[1742530834681,7.8472313,128.43,128.41,12.00399843]
[1742530836286,0.0568313,128.43,128.41,19.79519843]
[1742530836480,0.0568313,128.43,128.41,12.00399843]
[1742530837285,7.8471313,128.43,128.41,12.00399843]
[1742530838478,7.8471313,128.43,128.41,19.79519843]
[1742530838679,0.0568313,128.43,128.41,19.79519843]
[1742530842191,7.8468313,128.43,128.41,19.79519843]
[1742530843187,0.0568313,128.43,128.41,19.79519843]
[1742530843786,7.8477313,128.43,128.41,19.79519843]
[1742530844188,0.0568313,128.43,128.41,12.00399843]
[1742530844382,7.7914,128.42,128.4,12.05597014]
[1742530845995,7.7914,128.42,128.4,19.84857014]
[1742530846690,7.8477313,128.43,128.4,19.84857014]
[1742530846892,0.0568313,128.43,128.42,12.00399843]
[1742530848792,7.8476313,128.43,128.42,12.00399843]
[1742530849199,0.0568313,128.43,128.42,12.00399843]
[1742530849393,0.0568313,128.43,128.42,19.79539843]
[1742530851195,280.42,128.5,128.42,39.28399843]
[1742530851388,18.31549843,128.51,128.46,12.00399843]
[1742530851389,35.0667,128.49,128.46,12.00399843]
[1742530851595,27.28,128.49,128.46,12.00399843]
[1742530851796,35.0667,128.49,128.46,19.79199843]
[1742530852096,7.7867,128.49,128.46,19.79199843]
[1742530852290,35.0667,128.49,128.46,19.84924251]
[1742530852498,35.12660848,128.49,128.46,19.84924251]
[1742530853000,35.12660848,128.49,128.46,12.06124251]
[1742530853393,7.7871,128.48,128.46,12.06124251]
[1742530854300,7.7871,128.48,128.46,19.84944251]
[1742530855294,7.84660848,128.49,128.46,19.84944251]
[1742530855502,35.12660848,128.49,128.46,19.84944251]
[1742530858105,7.787,128.48,128.46,19.84944251]
[1742530858301,7.787,128.48,128.46,12.06124251]
[1742530859706,7.7876,128.47,128.46,12.06124251]
[1742530860505,7.7876,128.47,128.46,0.05724408]
[1742530860902,35.0676,128.47,128.46,0.05724408]
[1742530863204,0.05990848,128.49,128.46,12.06124251]
[1742530863416,0.05990848,128.49,128.48,12.00399843]
[1742530864608,0.05990848,128.49,128.48,19.79099843]
[1742530865206,0.05990848,128.49,128.48,12.00399843]
[1742530865809,0.05990848,128.49,128.48,19.79099843]
[1742530866010,0.05990848,128.49,128.48,12.00399843]
[1742530866707,7.84630848,128.49,128.48,12.00399843]
[1742530868310,0.05990848,128.49,128.48,12.00399843]
[1742530869402,7.84630848,128.49,128.48,12.00399843]
[1742530870609,0.05990848,128.49,128.48,12.00399843]
[1742530871313,0.05990848,128.49,128.48,19.79099843]
[1742530874213,27.28,128.53,128.48,12.00399843]
[1742530874512,27.28,128.53,128.51,12.00399843]
[1742530874903,35.0641,128.53,128.51,12.00399843]
[1742530875104,296.76429843,128.55,128.51,12.00399843]
[1742530875305,0.0598327,128.53,128.51,19.84184118]
[1742530875616,0.0598327,128.53,128.51,12.05704118]
[1742530876011,7.8438327,128.53,128.51,12.05704118]
[1742530876215,0.0598327,128.53,128.51,12.05704118]
[1742530877513,7.8438327,128.53,128.51,12.05704118]
[1742530879615,7.7846,128.52,128.51,12.05704118]
[1742530880607,0.0598327,128.53,128.51,19.84214118]
[1742530882513,7.8438327,128.53,128.51,19.84214118]
[1742530882717,0.0598327,128.53,128.52,7.7846]
[1742530882916,0.0598327,128.53,128.51,12.05704118]
[1742530883117,0.0598327,128.53,128.51,19.84184118]
[1742530884820,0.0598327,128.53,128.52,7.7846]
[1742530885112,0.0598327,128.53,128.51,12.05704118]
[1742530885113,0.0598327,128.53,128.51,0.05304275]
[1742530885320,27.26,128.52,128.51,0.05304275]
[1742530885825,35.0446,128.52,128.51,0.05304275]
[1742530890324,47.04859843,128.52,128.51,0.05304275]
[1742530890528,51.17829843,128.52,128.51,0.05304275]
[1742530892523,23.91829843,128.52,128.51,0.05304275]
[1742530892828,51.17829843,128.52,128.51,0.05304275]
[1742530893423,37.0494,128.52,128.51,0.05304275]
[1742530893628,7.8433327,128.53,128.51,0.05304275]
[1742530894125,0.0598327,128.53,128.51,0.05304275]
[1742530896134,0.0598327,128.53,128.51,7.83734275]
[1742530898735,0.0598327,128.53,128.52,7.7838]
[1742530898937,0.0598327,128.53,128.51,0.05304275]
[1742530899237,7.8431327,128.53,128.51,0.05304275]
[1742530901234,0.0598327,128.53,128.51,0.05304275]
[1742530901738,0.0598327,128.53,128.51,7.83734275]
[1742530902036,7.8431327,128.53,128.51,0.05304275]
[1742530902336,0.0598327,128.53,128.51,0.05304275]
[1742530902530,7.7838,128.52,128.51,0.05304275]
[1742530922852,7.8434327,128.53,128.51,0.05304275]
[1742530923247,0.0598327,128.53,128.51,12.05704118]
[1742530923746,0.0598327,128.53,128.52,7.7838]
[1742530923950,1.56727431,128.57,128.52,27.26]
[1742530924153,1.56727431,128.57,128.55,12.00399843]
[1742530924347,1.56727431,128.57,128.55,19.78579843]
[1742530925053,1.61975193,128.57,128.55,19.84253217]
[1742530925351,1.61975193,128.57,128.55,12.06073217]
[1742530925647,9.40055193,128.57,128.55,12.06073217]
[1742530925848,111.17663827,128.6,128.55,47.10073217]
[1742530926154,1.67606912,128.63,128.59,12.00399843]
[1742530926338,1.67305874,128.65,128.62,12.00399843]
[1742530926538,1.67305874,128.65,128.64,12.00399843]
[1742530929749,1.67305874,128.65,128.63,12.05744694]
[1742530929945,1.67305874,128.65,128.63,0.05344851]
[1742530930145,28.99305874,128.65,128.63,0.05344851]
[1742530930346,40.99705717,128.65,128.63,0.05344851]
[1742530930645,7.7765,128.64,128.63,0.05344851]
[1742530938251,12.00399843,128.64,128.6,292.24399843]
[1742530938454,12.00399843,128.64,128.6,280.24]
[1742530939256,0.04964689,128.63,128.61,0.05217212]
[1742530939860,7.7777,128.62,128.61,0.05217212]
[1742530941459,7.7783,128.61,128.6,280.24]
[1742530941658,27.26,128.62,128.58,12.00399843]
[1742530942063,7.7796,128.59,128.58,12.00399843]
[1742530946267,12.00399843,128.59,128.51,12.00399843]
[1742530946468,29.6043,128.63,128.56,12.00399843]
[1742530946660,12.00399843,128.62,128.56,39.50399843]
[1742530946859,12.00399843,128.6,128.54,12.00399843]
[1742530947065,12.00399843,128.58,128.52,319.56399843]
[1742530947258,7.781,128.57,128.52,327.34739843]
[1742530947460,0.05292805,128.56,128.54,0.05784325]
[1742530947859,0.05292805,128.56,128.54,12.06184168]
[1742530951166,0.05292805,128.56,128.54,19.84404168]
[1742530952173,0.05292805,128.56,128.55,7.782]
[1742530953770,0.05292805,128.56,128.54,19.84424168]
[1742530955961,0.05292805,128.56,128.55,7.782]
[1742530956968,7.83442805,128.56,128.54,12.06184168]
[1742530957662,27.55292805,128.56,128.54,0.05784325]
[1742530957968,7.782,128.55,128.54,0.05784325]
[1742530961374,35.33452805,128.56,128.54,0.05784325]
[1742530961673,27.55292805,128.56,128.54,0.05784325]
[1742530962473,7.782,128.55,128.54,0.05784325]
[1742530962872,27.55292805,128.56,128.54,0.05784325]
[1742530963785,35.33472805,128.56,128.54,0.05784325]
[1742530965282,7.782,128.55,128.54,0.05784325]
[1742530968086,282.1009,128.62,128.54,0.05784325]
[1742530968087,1.67305874,128.65,128.54,327.42184168]
[1742530968287,1.67305874,128.65,128.62,12.00399843]
[1742530968593,29.53305874,128.65,128.62,12.00399843]
[1742530969287,29.59131175,128.65,128.62,12.06166588]
[1742530970586,29.59131175,128.65,128.62,19.83936588]
[1742530974193,29.59131175,128.65,128.62,12.06166588]
[1742530975189,29.59131175,128.65,128.62,19.83886588]
[1742530975389,29.59131175,128.65,128.62,12.06166588]
[1742530975790,29.59131175,128.65,128.63,7.7768]
[1742530980296,29.59131175,128.65,128.62,7.83506745]
[1742530980593,29.59131175,128.65,128.62,0.05766745]
[1742530980793,12.00399843,128.64,128.58,12.00399843]
[1742530981298,12.00399843,128.62,128.58,12.00399843]
[1742530981598,39.76399843,128.62,128.58,12.00399843]
[1742530982098,0.05136982,128.61,128.59,0.05554176]
[1742530983398,0.05136982,128.61,128.59,7.83474176]
[1742530984601,0.05136982,128.61,128.6,19.78299843]
[1742530987503,0.05136982,128.61,128.6,12.00399843]
[1742530988203,7.82966982,128.61,128.6,12.00399843]
[1742530991906,7.779,128.6,128.59,0.05554176]
[1742530995208,27.75136982,128.61,128.59,0.05554176]
[1742530995909,0.05136982,128.61,128.6,12.00399843]
[1742530996807,0.05136982,128.61,128.6,19.78299843]
[1742530999113,7.82966982,128.61,128.6,12.00399843]
[1742530999315,0.05136982,128.61,128.59,0.05554176]
[1742531000410,7.83016982,128.61,128.59,0.05554176]
[1742531000611,0.05136982,128.61,128.59,0.05554176]
[1742531001210,35.459,128.6,128.59,0.05554176]
[1742531005913,37.4764,128.6,128.59,0.05554176]
[1742531009020,7.7808,128.57,128.56,12.00399843]
[1742531010422,7.7814,128.56,128.55,12.05733356]
[1742531010619,7.7814,128.56,128.55,0.05333513]
[1742531011024,7.7811,128.57,128.55,0.05333513]
[1742531011426,7.7811,128.57,128.55,19.83933356]
[1742531014830,7.7811,128.57,128.55,12.05733356]
[1742531016530,7.7811,128.57,128.55,19.83923356]
[1742531018630,7.83515986,128.58,128.55,19.83923356]
[1742531019525,7.7811,128.57,128.55,12.05733356]
[1742531019829,27.58,128.57,128.55,12.05733356]
[1742531020225,35.3611,128.57,128.55,12.05733356]
[1742531023836,35.3611,128.57,128.55,19.83933356]
[1742531024741,0.05465986,128.58,128.56,7.7814]
[1742531024934,0.05465986,128.58,128.55,12.05733356]
[1742531026343,0.05465986,128.58,128.56,7.7814]
[1742531026642,0.05465986,128.58,128.55,12.05733356]
[1742531027144,0.05465986,128.58,128.57,7.7808]
[1742531027344,0.05465986,128.58,128.57,19.78479843]
[1742531029043,0.05465986,128.58,128.56,7.7812]
[1742531030349,7.83505986,128.58,128.56,7.7812]
[1742531030552,0.05465986,128.58,128.57,7.7808]
[1742531030739,0.05465986,128.58,128.57,19.78479843]
[1742531052268,0.05465986,128.58,128.56,47.32529843]
[1742531052475,0.05465986,128.58,128.55,292.13733356]
[1742531053563,7.7808,128.57,128.55,299.91893356]
[1742531054076,7.7808,128.57,128.55,19.83893356]
[1742531054680,7.7808,128.57,128.55,12.05733356]
[1742531056776,7.7814,128.56,128.55,12.05733356]
[1742531058375,7.7814,128.56,128.55,0.05333513]
[1742531061477,7.7811,128.57,128.55,0.05333513]
[1742531063374,7.7814,128.56,128.55,0.05333513]
[1742531063579,35.1614,128.56,128.52,292.08399843]
[1742531063975,35.1614,128.56,128.53,7.7832]
[1742531064679,27.38,128.56,128.52,287.8635]
[1742531064880,12.00399843,128.55,128.53,0.05146998]
[1742531065277,7.7826,128.54,128.53,0.05146998]
[1742531067086,39.44365227,128.56,128.53,0.05146998]
[1742531068989,7.7826,128.54,128.53,0.05146998]
[1742531071485,9.8887,128.54,128.53,0.05146998]
[1742531072084,7.7833,128.53,128.5,19.78869843]
[1742531072287,35.1433,128.53,128.5,19.78869843]
[1742531073186,35.19879129,128.53,128.5,19.83945653]
[1742531073788,35.19879129,128.53,128.5,7.8354581]
[1742531075580,27.41549129,128.53,128.5,12.05475653]
[1742531075982,35.19909129,128.53,128.5,0.0507581]
[1742531076186,39.41948972,128.53,128.5,0.0507581]
[1742531076389,43.60878972,128.53,128.5,0.0507581]
[1742531076985,7.7838,128.52,128.5,0.0507581]
[1742531077488,43.60878972,128.53,128.5,0.0507581]
[1742531077687,7.7844,128.51,128.5,0.0507581]
[1742531078585,7.7851,128.5,128.48,19.78989843]
[1742531078776,35.1651,128.5,128.48,19.78989843]
[1742531078981,27.38,128.5,128.49,7.7856]
[1742531080089,27.38,128.5,128.48,7.83905641]
[1742531080681,27.38,128.5,128.48,0.05305641]
[1742531081087,35.1653,128.5,128.48,0.05305641]
[1742531087281,7.7856,128.49,128.48,0.05305641]
[1742531088292,35.1653,128.5,128.48,0.05305641]
[1742531089986,7.7856,128.49,128.48,0.05305641]
[1742531090188,9.937,128.49,128.48,0.05305641]
[1742531091084,2.1514,128.49,128.48,0.05305641]
[1742531091280,27.38,128.5,128.48,0.05305641]
[1742531091694,0.05523028,128.51,128.48,12.05705484]
[1742531092594,0.05523028,128.51,128.49,7.7856]
[1742531094693,0.05523028,128.51,128.5,7.785]
[1742531099489,0.05523028,128.51,128.49,7.7855]
[1742531101296,0.05523028,128.51,128.5,7.785]
[1742531108806,0.05523028,128.51,128.5,19.78899843]
[1742531110403,0.05523028,128.51,128.5,47.06899843]
[1742531133327,0.05523028,128.51,128.5,19.78899843]
[1742531133528,0.05523028,128.51,128.5,7.785]
[1742531133925,0.05523028,128.51,128.49,7.7853]
[1742531135435,7.83973028,128.51,128.49,7.7853]
[1742531137232,7.83973028,128.51,128.48,342.66238645]
[1742531137933,7.83973028,128.51,128.48,300.04295484]
[1742531139432,7.83973028,128.51,128.49,7.7855]
[1742531140033,7.83973028,128.51,128.48,300.04295484]
[1742531142736,7.83973028,128.51,128.49,7.7855]
[1742531146128,7.83973028,128.51,128.48,300.04295484]
[1742531147937,0.05523028,128.51,128.48,292.25705484]
[1742531148138,0.05523028,128.51,128.48,280.25305641]
[1742531149643,7.84003028,128.51,128.48,288.03885641]
[1742531149947,7.84003028,128.51,128.48,7.83885641]
[1742531152242,7.785,128.5,128.48,7.83885641]
[1742531153348,7.7856,128.49,128.48,0.05305641]
[1742531162658,9.941,128.5,128.48,0.05305641]
[1742531163049,2.1558,128.5,128.48,0.05305641]
[1742531164448,7.7856,128.49,128.48,0.05305641]
[1742531168958,9.9411,128.5,128.48,0.05305641]
[1742531170261,7.7856,128.49,128.48,0.05305641]
[1742531176864,7.7871,128.47,128.44,362.16343004]
[1742531177265,7.7871,128.47,128.44,342.67173004]
[1742531178069,7.83636414,128.47,128.44,342.72345269]
[1742531178268,7.7875,128.46,128.44,342.72345269]
[1742531180180,7.788,128.45,128.44,334.93515269]
[1742531180366,7.788,128.45,128.44,322.93115426]
[1742531180568,7.788,128.45,128.44,0.05172265]
[1742531182076,9.8516,128.46,128.44,0.05172265]
[1742531183173,9.8516,128.46,128.44,7.84022265]
[1742531184774,35.11636414,128.47,128.45,7.788]
[1742531185680,27.32926414,128.47,128.45,7.788]
[1742531185979,0.04926414,128.47,128.46,19.79139843]
[1742531186478,14.08109843,128.55,128.46,12.00399843]
[1742531186681,27.28,128.55,128.52,12.00399843]
[1742531186876,7.90467656,128.56,128.52,12.00399843]
[1742531187273,9.8498,128.56,128.52,12.00399843]
[1742531187580,0.04953236,128.55,128.53,7.84057387]
[1742531188080,0.04953236,128.55,128.53,0.05747387]
[1742531189784,7.83163236,128.55,128.53,0.05747387]
[1742531190276,7.83163236,128.55,128.53,7.84057387]
[1742531193680,0.04953236,128.55,128.53,7.84057387]
[1742531194482,0.04953236,128.55,128.54,7.7826]
[1742531195376,0.04953236,128.55,128.53,0.05747387]
[1742531195377,0.04953236,128.55,128.53,7.84037387]
[1742531195584,0.04953236,128.55,128.53,0.05747387]
[1742531196083,7.83193236,128.55,128.53,0.05747387]
[1742531196884,0.04953236,128.55,128.53,7.84047387]
[1742531198784,0.04953236,128.55,128.54,7.7826]
[1742531208793,0.04953236,128.55,128.53,19.8444723]
[1742531211393,0.04953236,128.55,128.54,7.7826]
[1742531215497,0.04953236,128.55,128.54,19.78659843]
[1742531226399,1.9917,128.59,128.54,12.00399843]
[1742531226595,27.26,128.61,128.58,12.00399843]
[1742531227095,7.7787,128.6,128.58,12.00399843]
[1742531227302,27.26,128.61,128.58,12.00399843]
[1742531227494,0.049344,128.6,128.58,12.06028183]
[1742531228504,7.7788,128.59,128.58,12.06028183]
[1742531229604,7.827744,128.6,128.58,19.83968183]
[1742531230197,0.049344,128.6,128.59,7.7788]
[1742531235508,0.049344,128.6,128.59,35.0388]
[1742531237301,0.049344,128.6,128.59,27.26]
[1742531237704,7.828044,128.6,128.58,12.06028183]
[1742531239003,0.049344,128.6,128.58,12.06028183]
[1742531240506,0.049344,128.6,128.59,7.7788]
[1742531250616,0.049344,128.6,128.58,19.83938183]
[1742531250809,0.049344,128.6,128.58,0.0562834]
[1742531251218,7.827844,128.6,128.58,0.0562834]
[1742531251816,7.827844,128.6,128.58,7.8356834]
[1742531254821,7.7788,128.59,128.58,0.0562834]
[1742531255621,7.827844,128.6,128.58,0.0562834]
[1742531256119,0.049344,128.6,128.58,0.0562834]
[1742531257417,14.19704243,128.6,128.58,0.0562834]
[1742531257619,14.19704243,128.6,128.54,49.89885633]
[1742531258620,7.7795,128.58,128.56,7.7806]
[1742531258820,7.7795,128.58,128.56,7.83563664]
[1742531259217,7.7795,128.58,128.56,0.05503664]
[1742531260019,7.78,128.57,128.56,0.05503664]
[1742531267332,37.145,128.59,128.56,0.05503664]
[1742531267530,7.7792,128.59,128.56,12.05903507]
[1742531267935,9.971244,128.6,128.57,7.7795]
[1742531268532,2.193044,128.6,128.57,12.00399843]
[1742531269327,2.193044,128.6,128.58,7.7794]
[1742531269529,2.193044,128.6,128.57,12.00399843]
[1742531269725,0.049344,128.6,128.57,12.00399843]
[1742531270031,0.049344,128.6,128.57,39.24399843]
[1742531270233,0.049344,128.6,128.58,7.7794]
[1742531270733,0.049344,128.6,128.59,7.7788]
[1742531273234,0.049344,128.6,128.58,7.7791]
[1742531273929,7.827544,128.6,128.58,7.7791]
[1742531276336,7.827544,128.6,128.57,47.02359843]
[1742531276638,7.7788,128.59,128.57,47.02359843]
[1742531277034,0.049344,128.6,128.58,7.7794]
[1742531277635,7.827944,128.6,128.57,47.02379843]
[1742531277834,0.049344,128.6,128.57,47.02379843]
[1742531278440,7.827744,128.6,128.57,39.24399843]
[1742531278734,0.049344,128.6,128.57,39.24399843]
[1742531279136,7.827744,128.6,128.58,7.7794]
[1742531279736,7.827744,128.6,128.57,47.02369843]
[1742531280737,0.049344,128.6,128.57,12.00399843]
[1742531280939,0.049344,128.6,128.56,7.83533664]
[1742531281734,7.7789,128.59,128.56,7.83533664]
[1742531281936,12.05334243,128.6,128.56,0.05503664]
[1742531282138,39.29334243,128.6,128.56,0.05503664]
[1742531282443,4.176,128.59,128.56,0.05503664]
[1742531283138,7.7794,128.58,128.56,0.05503664]
[1742531283839,11.9551,128.59,128.56,7.83563664]
[1742531284339,4.176,128.59,128.57,7.7796]
[1742531285543,39.29334243,128.6,128.58,7.7794]
[1742531285743,39.29334243,128.6,128.56,39.29903507]
[1742531285944,27.289344,128.6,128.56,39.29903507]
[1742531286845,0.049344,128.6,128.59,7.7788]
[1742531295150,0.049344,128.6,128.59,35.0188]
[1742531305253,1.67305874,128.65,128.64,7.7758]
[1742531306553,1.67305874,128.65,128.64,19.77979843]
[1742531307957,1.67305874,128.65,128.63,7.83248694]
[1742531309159,1.67305874,128.65,128.64,7.7758]
[1742531309662,1.67305874,128.65,128.64,19.77979843]
[1742531326180,1.67305874,128.65,128.64,46.99979843]
[1742531342191,1.67305874,128.65,128.63,7.83248694]
[1742531342495,11.42785874,128.65,128.61,329.87885633]
[1742531342793,3.65255874,128.65,128.61,337.65615633]
[1742531342997,7.7761,128.64,128.61,337.65615633]
[1742531343789,7.7764,128.63,128.61,284.13066568]
[1742531343990,7.7764,128.63,128.61,273.47580778]
[1742531344198,7.83539665,128.63,128.61,273.47580778]
[1742531344989,7.777,128.62,128.61,273.47580778]
[1742531345190,7.777,128.62,128.61,0.05480778]
[1742531350601,7.83559665,128.63,128.61,0.05480778]
[1742531351699,7.777,128.62,128.61,0.05480778]
[1742531353299,0.05899665,128.63,128.61,12.05880621]
[1742531353799,0.05899665,128.63,128.62,7.777]
[1742531355507,0.05899665,128.63,128.61,19.83610621]
[1742531356604,7.83549665,128.63,128.61,19.83610621]
[1742531359009,0.05899665,128.63,128.61,19.83610621]
[1742531359703,0.05899665,128.63,128.62,7.777]
[1742531389429,0.05899665,128.63,128.61,47.05600621]
[1742531390332,7.83539665,128.63,128.61,47.05600621]
[1742531390529,0.05899665,128.63,128.62,7.777]
[1742531390729,0.05899665,128.63,128.61,39.27880621]
[1742531391128,0.05899665,128.63,128.61,47.05590621]
[1742531391737,0.05899665,128.63,128.61,19.83590621]
[1742531392136,7.83539665,128.63,128.61,19.83590621]
[1742531399932,7.777,128.62,128.61,0.05480778]
[1742531400140,39.28299508,128.63,128.58,10.6548579]
[1742531400339,12.00399843,128.61,128.58,10.6548579]
[1742531400638,7.7782,128.6,128.58,10.6548579]
[1742531401228,19.78189843,128.61,128.58,18.4341579]
[1742531401438,0.05864254,128.6,128.58,18.48616316]
[1742531403233,0.05864254,128.6,128.59,7.7788]
[1742531405143,0.05864254,128.6,128.58,0.05200526]
[1742531406244,7.83684254,128.6,128.58,0.05200526]
[1742531408542,12.00399843,128.59,128.54,12.00399843]
[1742531408942,27.24,128.58,128.54,12.00399843]
[1742531409840,0.05871939,128.57,128.55,0.0493747]
[1742531411443,0.05871939,128.57,128.56,7.7806]
[1742531416349,0.05871939,128.57,128.56,19.78459843]
[1742531416754,0.05871939,128.57,128.56,47.02459843]
[1742531423659,12.00399843,128.63,128.61,7.7776]
[1742531423853,39.24399843,128.63,128.61,7.7776]